bitfinex/quotes_ETHUSD_20241004
["timestamp","ask_amount","ask_price","bid_price","bid_amount"]
[1728034007480,20.29086,2387.5,2387.4,0.2602662]
[1728034009247,4.18988,2386.7,2386.6,0.7689]
[1728034009458,4.19027,2386.5,2386.4,0.8168]
[1728034010842,4.19058,2386.3,2386.2,0.8168]
[1728034011072,0.7513,2386.7,2386.2,0.8168]
[1728034011285,4.19058,2386.3,2386.2,0.8168]
[1728034011992,4.159133,2386.4,2386.2,0.8168]
[1728034012274,8.349673,2386.4,2386.2,0.8168]
[1728034012576,4.159133,2386.4,2386.2,0.8168]
[1728034013576,4.159133,2386.4,2386.2,1.317588]
[1728034015214,4.19053,2386.4,2386.2,1.317588]
[1728034015369,4.19053,2386.4,2386.2,0.8168]
[1728034018407,4.19018,2386.6,2386.2,0.8168]
[1728034018408,4.19035,2386.5,2386.2,0.8168]
[1728034018643,4.19041,2386.4,2386.2,0.8168]
[1728034018808,8.38095,2386.4,2386.2,0.8168]
[1728034019103,4.19058,2386.3,2386.2,0.8168]
[1728034019323,4.19044,2386.4,2386.2,0.8168]
[1728034019671,4.19058,2386.3,2386.2,0.8168]
[1728034019902,4.19045,2386.4,2386.2,0.8168]
[1728034020109,4.19045,2386.4,2386.2,1.317591]
[1728034020315,4.19058,2386.3,2386.2,1.317591]
[1728034020511,4.19045,2386.4,2386.2,1.317591]
[1728034020512,4.19052,2386.4,2386.2,0.8168]
[1728034020712,4.19058,2386.3,2386.2,0.8168]
[1728034021700,4.19112,2386.0,2385.8,0.8056]
[1728034022815,4.19129,2385.9,2385.8,0.8056]
[1728034024926,4.19112,2386.0,2385.8,0.8056]
[1728034025092,3.0,2386.2,2385.9,0.7729]
[1728034025300,4.19046,2386.4,2385.9,4.19127]
[1728034025516,3.0,2386.6,2386.0,0.7729]
[1728034025517,4.19061,2386.3,2386.0,0.7729]
[1728034025821,4.19042,2386.4,2386.1,0.496417]
[1728034026026,4.19042,2386.4,2386.0,4.19108]
[1728034026224,4.18932,2387.1,2385.8,0.52277495]
[1728034026225,5.00759,2387.0,2386.1,0.7744]
[1728034026413,4.19006,2386.6,2386.3,0.8288]
[1728034027289,4.19006,2386.6,2386.3,0.85880303]
[1728034028385,4.19008,2386.6,2386.4,0.55]
[1728034028588,4.19008,2386.6,2386.4,1.1099543]
[1728034028787,4.18991,2386.7,2386.4,1.1099543]
[1728034029226,4.19006,2386.6,2386.4,0.5599543]
[1728034029392,4.19006,2386.6,2386.3,0.8288]
[1728034029890,4.1903,2386.5,2386.3,0.8288]
[1728034031937,4.19008,2386.6,2386.3,0.8288]
[1728034032126,3.0,2387.1,2386.3,0.8288]
[1728034032127,4.18978,2386.8,2386.4,4.1904]
[1728034032334,4.18992,2386.7,2386.5,0.8278]
[1728034035132,3.0,2387.1,2386.5,0.8278]
[1728034035305,3.0,2387.1,2386.5,5.01803]
[1728034035306,4.18969,2386.9,2386.5,5.01803]
[1728034035509,4.18969,2386.9,2386.6,0.8278]
[1728034035703,4.18969,2386.9,2386.6,1.8324408]
[1728034036422,4.18972,2386.8,2386.6,1.8324408]
[1728034036617,4.18972,2386.8,2386.6,0.8278]
[1728034036992,4.18968,2386.9,2386.6,0.8278]
[1728034037234,4.1896,2386.9,2386.6,0.8278]
[1728034037394,4.18952,2387.0,2386.6,5.01785]
[1728034037593,4.18952,2387.0,2386.8,0.7621]
[1728034038137,4.18946,2387.0,2386.8,0.7621]
[1728034038345,4.18922,2387.1,2386.8,0.7621]
[1728034038510,4.18915,2387.2,2386.8,4.1897]
[1728034038695,4.18915,2387.2,2386.9,0.7621]
[1728034038896,4.18915,2387.2,2386.9,1.7683477]
[1728034039114,4.18911,2387.2,2386.9,1.7683477]
[1728034039430,4.18923,2387.1,2386.9,1.7683477]
[1728034039635,4.18935,2387.0,2386.9,0.7621]
[1728034039840,4.18989,2386.7,2386.4,1.3076]
[1728034040132,4.18989,2386.7,2386.3,8.07009361]
[1728034040133,4.19013,2386.6,2386.3,0.7576]
[1728034040604,4.19001,2386.7,2386.3,4.94812]
[1728034040806,4.19001,2386.7,2386.3,5.862038]
[1728034041110,4.18978,2386.8,2386.4,4.1904]
[1728034041301,4.18966,2386.9,2386.4,4.1904]
[1728034041302,4.18966,2386.9,2386.6,0.8102]
[1728034042004,4.18979,2386.8,2386.6,0.8102]
[1728034042925,8.37962,2386.8,2386.6,0.8102]
[1728034043235,4.18988,2386.7,2386.6,0.8102]
[1728034044742,4.18948,2387.0,2386.4,8.08690716]
[1728034045039,4.18945,2387.0,2386.6,0.8189]
[1728034045331,4.18961,2386.9,2386.6,0.8189]
[1728034045632,4.189,2387.2,2386.6,0.8189]
[1728034045633,4.18916,2387.2,2386.6,5.928902]
[1728034045835,4.18934,2387.1,2386.7,4.18985]
[1728034046201,4.18936,2387.0,2386.7,4.18985]
[1728034047221,4.18936,2387.0,2386.7,5.2017332]
[1728034050042,4.18936,2387.0,2386.7,1.0118832]
[1728034050240,4.18936,2387.0,2386.7,4.18987]
[1728034050436,4.18936,2387.0,2386.6,5.00893]
[1728034051510,4.18936,2387.0,2386.6,9.1989]
[1728034051730,4.18918,2387.1,2386.7,4.18975]
[1728034052728,3.7767,2387.5,2386.8,1.3438]
[1728034052929,3.7767,2387.5,2387.1,0.7938]
[1728034052930,4.18872,2387.4,2387.1,0.7938]
[1728034053143,4.18891,2387.3,2387.1,0.7938]
[1728034055567,8.37783,2387.3,2387.1,0.7938]
[1728034055723,4.18891,2387.3,2387.1,0.7938]
[1728034058958,4.189,2387.2,2386.9,0.8328]
[1728034061769,4.189,2387.2,2386.9,1.754021]
[1728034061968,4.18888,2387.3,2386.9,5.943481]
[1728034062172,4.18888,2387.3,2387.0,4.18934]
[1728034062473,4.1887,2387.4,2386.9,5.943531]
[1728034062648,4.18892,2387.3,2386.9,5.943531]
[1728034063478,4.18903,2387.2,2386.9,1.754021]
[1728034064174,4.18892,2387.3,2386.9,5.02223]
[1728034064575,4.18866,2387.4,2387.0,4.18929]
[1728034065185,4.18885,2387.3,2386.9,0.8328]
[1728034065398,4.18885,2387.3,2386.9,5.02231]
[1728034065547,8.37778,2387.3,2386.9,5.943511]
[1728034065857,4.18885,2387.3,2386.9,5.943511]
[1728034066886,4.18885,2387.3,2386.9,1.754001]
[1728034067073,4.18902,2387.2,2386.9,0.8328]
[1728034069990,4.18902,2387.2,2386.9,5.02232]
[1728034070903,4.18902,2387.2,2386.9,5.0617095]
[1728034071996,4.18902,2387.2,2386.9,0.8721895]
[1728034074599,4.18876,2387.4,2387.0,4.18926]
[1728034074751,4.18854,2387.5,2387.1,0.8263]
[1728034074954,4.18854,2387.5,2387.1,5.0154]
[1728034075195,8.37713,2387.5,2387.1,6.03232825]
[1728034075395,4.18854,2387.5,2387.1,6.03232825]
[1728034075691,4.18854,2387.5,2387.1,1.84322825]
[1728034075898,4.18874,2387.4,2387.1,0.8656895]
[1728034076356,8.37755,2387.4,2387.1,0.8656895]
[1728034077998,4.18885,2387.3,2387.1,0.8656895]
[1728034079704,4.18872,2387.4,2387.1,0.8656895]
[1728034080366,4.18872,2387.4,2387.1,1.55165911]
[1728034081001,4.1889,2387.3,2387.1,0.8656895]
[1728034081565,4.18866,2387.4,2387.1,0.8656895]
[1728034082617,8.37748,2387.4,2387.1,0.8656895]
[1728034082828,4.18866,2387.4,2387.1,0.8656895]
[1728034083029,4.18866,2387.4,2387.1,1.97060711]
[1728034083212,8.37684,2387.6,2387.2,4.73897]
[1728034083397,4.18814,2387.7,2387.3,5.00256]
[1728034083597,7.31,2388.2,2387.5,1.3638]
[1728034083808,4.18714,2388.3,2387.9,5.00149]
[1728034084109,4.18629,2388.8,2388.3,4.18695]
[1728034084686,4.18663,2388.6,2388.3,0.55]
[1728034084891,5.00127,2389.0,2388.3,0.55]
[1728034085187,0.8154,2389.0,2388.2,0.8138]
[1728034085423,4.18699,2388.4,2388.2,0.8138]
[1728034085815,8.37403,2388.4,2388.2,0.8138]
[1728034086531,4.18707,2388.3,2388.2,0.8138]
[1728034087622,4.1875,2388.1,2388.0,0.8274]
[1728034087829,4.1875,2388.1,2388.0,1.3774]
[1728034088739,4.1875,2388.1,2387.7,0.756]
[1728034089022,4.1875,2388.1,2387.8,1.344417]
[1728034089225,4.18761,2388.0,2387.8,1.344417]
[1728034090047,4.18764,2388.0,2387.8,1.344417]
[1728034093523,4.18795,2387.8,2387.7,0.756]
[1728034093798,4.18821,2387.7,2387.5,0.7728]
[1728034094319,4.18795,2387.8,2387.5,0.7728]
[1728034094633,4.18795,2387.8,2387.5,1.26895]
[1728034095661,8.37601,2387.8,2387.5,1.26895]
[1728034096565,4.18795,2387.8,2387.5,1.26895]
[1728034097176,8.37602,2387.8,2387.5,1.26895]
[1728034097331,0.8216,2388.1,2387.7,0.7681]
[1728034097332,4.18744,2388.1,2387.7,0.7681]
[1728034097544,4.18768,2388.0,2387.7,0.7681]
[1728034097748,4.18768,2388.0,2387.7,1.787185]
[1728034101954,4.18787,2387.9,2387.7,1.787185]
[1728034102157,4.18757,2388.1,2387.7,1.787185]
[1728034102486,4.1876,2388.0,2387.7,1.787185]
[1728034102706,4.1878,2387.9,2387.8,0.6525405]
[1728034102993,4.1878,2387.9,2387.7,0.7681]
[1728034103143,4.1876,2388.0,2387.7,0.7681]
[1728034103747,4.18736,2388.2,2387.8,0.55]
[1728034103992,4.18744,2388.1,2387.8,1.155631]
[1728034104486,0.766,2388.4,2387.8,1.155631]
[1728034104729,4.18689,2388.5,2388.0,0.7502]
[1728034104846,4.18646,2388.7,2388.3,4.93726]
[1728034105048,4.18646,2388.7,2388.3,5.904709]
[1728034105274,4.18655,2388.6,2388.3,1.717649]
[1728034106091,4.18679,2388.5,2388.3,1.717649]
[1728034106500,4.18655,2388.6,2388.3,1.717649]
[1728034108857,4.18673,2388.5,2388.3,1.717649]
[1728034109493,4.1869,2388.4,2388.1,1.3821]
[1728034109799,8.37397,2388.4,2388.1,1.3821]
[1728034109955,4.1869,2388.4,2388.1,1.3821]
[1728034110156,0.8071,2388.8,2388.1,1.3821]
[1728034110356,4.18743,2388.1,2387.8,1.3646]
[1728034110579,4.1876,2388.0,2387.9,0.555264]
[1728034110779,4.1876,2388.0,2387.8,0.8146]
[1728034111458,4.18778,2387.9,2387.8,0.8146]
[1728034111795,4.18763,2388.0,2387.8,0.8146]
[1728034111996,4.18763,2388.0,2387.8,0.86912379]
[1728034112161,8.37535,2388.0,2387.8,0.05452379]
[1728034112494,4.18763,2388.0,2387.8,0.05452379]
[1728034112905,4.18755,2388.1,2387.8,0.05452379]
[1728034113208,4.18769,2388.0,2387.8,0.05343489]
[1728034114581,4.18746,2388.1,2387.8,0.05343489]
[1728034115511,4.18746,2388.1,2387.8,0.97179038]
[1728034116173,4.18767,2388.0,2387.8,0.97179038]
[1728034116507,4.18767,2388.0,2387.8,0.05343489]
[1728034117083,4.18746,2388.1,2387.8,0.05343489]
[1728034117674,4.1876,2388.0,2387.8,0.05343489]
[1728034118991,4.18746,2388.1,2387.8,0.05343489]
[1728034119394,8.37506,2388.1,2387.8,0.05343489]
[1728034119570,4.18746,2388.1,2387.8,0.05343489]
[1728034120070,4.1876,2388.0,2387.8,0.05343489]
[1728034120805,4.18746,2388.1,2387.8,0.05343489]
[1728034124016,4.18778,2387.9,2387.8,0.05343489]
[1728034125791,4.98968,2387.9,2387.8,0.05343489]
[1728034127024,4.18778,2387.9,2387.8,0.05343489]
[1728034128306,4.1876,2388.0,2387.8,0.05343489]
[1728034128507,8.37533,2388.0,2387.8,0.05343489]
[1728034128706,4.18778,2387.9,2387.8,0.05343489]
[1728034129035,4.1874,2388.2,2387.8,0.81873489]
[1728034129345,4.1874,2388.2,2387.9,0.50067649]
[1728034129698,4.18742,2388.1,2387.8,5.00658489]
[1728034129902,4.18742,2388.1,2387.8,0.81873489]
[1728034130705,8.37501,2388.1,2387.8,0.81873489]
[1728034130943,4.18772,2388.0,2387.8,0.81873489]
[1728034131308,8.37548,2388.0,2387.8,0.81873489]
[1728034131639,4.18772,2388.0,2387.8,0.81873489]
[1728034132811,8.37543,2388.0,2387.8,0.81873489]
[1728034133207,4.18771,2388.0,2387.8,0.81873489]
[1728034133752,4.18778,2387.9,2387.8,0.81873489]
[1728034136211,4.18778,2387.9,2387.8,0.05343489]
[1728034137048,4.18768,2388.0,2387.9,0.7676]
[1728034137360,4.18744,2388.1,2387.9,1.81851549]
[1728034138219,4.1876,2388.0,2387.9,1.81851549]
[1728034138552,4.1876,2388.0,2387.8,0.05343489]
[1728034138553,4.18778,2387.9,2387.8,0.05343489]
[1728034140693,5.01748,2387.9,2387.8,0.05343489]
[1728034140988,8.01748,2387.9,2387.8,0.05343489]
[1728034149700,8.01748,2387.9,2387.8,0.2625764]
[1728034149915,9.237988,2387.9,2387.8,0.2625764]
[1728034160737,8.408288,2387.9,2387.8,0.2625764]
[1728034161240,7.18778,2387.9,2387.8,0.2625764]
[1728034178299,7.95558,2387.9,2387.8,0.2625764]
[1728034184135,7.95558,2387.9,2387.8,0.24689199]
[1728034192464,7.18778,2387.9,2387.8,0.24689199]
[1728034201280,7.97378,2387.9,2387.8,0.24689199]
[1728034201584,9.189918,2387.9,2387.8,0.24689199]
[1728034202246,8.403918,2387.9,2387.8,0.24689199]
[1728034202799,7.18778,2387.9,2387.8,0.24689199]
[1728034212323,7.18778,2387.9,2387.8,1.03029199]
[1728034212630,4.18778,2387.9,2387.8,1.03029199]
[1728034212781,4.18763,2388.0,2387.9,0.8259]
[1728034213222,4.18746,2388.1,2387.9,0.8259]
[1728034213588,4.1876,2388.0,2387.9,0.8259]
[1728034215616,4.18746,2388.1,2387.9,0.8259]
[1728034215926,4.18733,2388.2,2387.9,0.8259]
[1728034216687,4.18721,2388.3,2387.9,0.8259]
[1728034216926,8.37441,2388.3,2388.1,0.8118]
[1728034217120,4.18725,2388.2,2388.1,0.8118]
[1728034217619,4.18725,2388.2,2388.1,0.87527094]
[1728034221100,4.18725,2388.2,2388.1,0.06347094]
[1728034221312,4.1876,2388.0,2387.9,0.8129]
[1728034221911,4.18792,2387.9,2387.5,0.8129]
[1728034222119,4.18796,2387.8,2387.6,0.8129]
[1728034223318,4.18813,2387.7,2387.6,0.8129]
[1728034224488,4.18813,2387.7,2387.3,0.8328]
[1728034224691,4.18865,2387.4,2387.3,0.8328]
[1728034225649,4.18865,2387.4,2387.2,0.0393895]
[1728034225650,4.18883,2387.3,2387.2,0.0393895]
[1728034228153,8.07733604,2387.3,2387.2,0.0393895]
[1728034228311,9.37899464,2387.3,2387.2,0.0393895]
[1728034229462,13.19859464,2387.3,2387.2,0.0393895]
[1728034229608,16.77385964,2387.3,2387.2,0.0393895]
[1728034230247,15.52167464,2387.3,2387.2,0.0393895]
[1728034232248,9.3100886,2387.3,2387.2,0.0393895]
[1728034234426,7.18883,2387.3,2387.2,0.0393895]
[1728034234632,4.18865,2387.4,2387.2,0.8094895]
[1728034234829,4.18856,2387.5,2387.2,0.8785677]
[1728034235039,4.18841,2387.6,2387.2,5.0675677]
[1728034235243,4.18841,2387.6,2387.3,0.8079]
[1728034235443,8.37684,2387.6,2387.4,0.57931037]
[1728034235751,4.18841,2387.6,2387.4,0.0687836]
[1728034236052,8.37681,2387.6,2387.4,0.0687836]
[1728034236756,4.18848,2387.5,2387.4,0.0687836]
[1728034238210,3.0,2388.1,2387.4,0.0687836]
[1728034238447,4.18803,2387.8,2387.5,0.76]
[1728034238652,4.18803,2387.8,2387.5,0.82852656]
[1728034238815,4.18817,2387.7,2387.5,0.82852656]
[1728034239012,4.1883,2387.6,2387.5,0.82852656]
[1728034240821,4.1883,2387.6,2387.5,0.06852656]
[1728034241021,4.18817,2387.7,2387.2,0.0393895]
[1728034241022,4.18865,2387.4,2387.3,0.7566]
[1728034241339,4.18865,2387.4,2387.3,0.82542114]
[1728034241663,4.18865,2387.4,2387.3,0.7566]
[1728034242618,4.18883,2387.3,2387.2,0.0393895]
[1728034242857,4.18883,2387.3,2387.2,0.10030446]
[1728034244249,4.18883,2387.3,2387.2,0.0393895]
[1728034245855,4.18883,2387.3,2387.2,0.2510477]
[1728034246225,4.18883,2387.3,2387.2,0.31957703]
[1728034246736,5.9138106,2387.3,2387.2,0.31957703]
[1728034246964,12.80231664,2387.3,2387.2,0.31957703]
[1728034247150,8.9138106,2387.3,2387.2,0.2510477]
[1728034248445,7.18883,2387.3,2387.2,0.2510477]
[1728034248775,7.18883,2387.3,2387.2,0.31228983]
[1728034249845,7.18883,2387.3,2387.2,0.2510477]
[1728034251577,4.18883,2387.3,2387.2,0.2510477]
[1728034251982,4.18883,2387.3,2387.2,0.31258261]
[1728034252283,4.18883,2387.3,2387.2,0.2510477]
[1728034252442,4.18883,2387.3,2387.2,0.31258261]
[1728034254489,4.18883,2387.3,2387.2,0.2510477]
[1728034254873,4.18883,2387.3,2387.2,0.30642912]
[1728034258387,4.18883,2387.3,2387.2,0.2510477]
[1728034258692,4.18883,2387.3,2387.2,0.30642912]
[1728034260490,4.18883,2387.3,2387.2,0.2510477]
[1728034260854,4.18883,2387.3,2387.2,0.30642912]
[1728034261381,4.18865,2387.4,2387.2,0.30642912]
[1728034261551,4.18865,2387.4,2387.2,0.09477092]
[1728034261755,4.18851,2387.5,2387.2,0.96356359]
[1728034261955,4.18851,2387.5,2387.4,0.8235]
[1728034262696,4.18851,2387.5,2387.4,0.88465822]
[1728034263712,4.18851,2387.5,2387.4,0.8235]
[1728034264004,4.18851,2387.5,2387.4,0.892303]
[1728034264902,4.18847,2387.6,2387.2,0.8565895]
[1728034265107,4.18883,2387.3,2387.2,0.8565895]
[1728034269326,4.18883,2387.3,2387.2,0.0393895]
[1728034270219,4.18883,2387.3,2387.2,0.24829139]
[1728034272298,4.1885,2387.5,2387.3,0.8159]
[1728034272707,4.1885,2387.5,2387.3,1.32033895]
[1728034273402,4.18823,2387.7,2387.4,0.8159]
[1728034274137,4.95923,2388.1,2387.4,0.8159]
[1728034274377,4.18848,2387.5,2387.4,0.8159]
[1728034277842,4.18832,2387.6,2387.4,0.8159]
[1728034278442,4.18825,2387.7,2387.4,0.8159]
[1728034278655,4.1883,2387.6,2387.5,0.500469]
[1728034278871,4.1883,2387.6,2387.4,0.8159]
[1728034279047,4.18848,2387.5,2387.4,0.8159]
[1728034280341,4.1883,2387.6,2387.4,0.8159]
[1728034280537,4.18848,2387.5,2387.4,0.8159]
[1728034280775,8.88685604,2387.8,2387.2,0.8617895]
[1728034280776,4.1887,2387.4,2387.2,0.8617895]
[1728034280983,4.18873,2387.4,2387.2,1.45464008]
[1728034281281,4.18873,2387.4,2387.3,0.06861447]
[1728034281663,4.18873,2387.4,2387.2,0.8617895]
[1728034281980,4.18873,2387.4,2387.3,0.06861447]
[1728034282476,4.18873,2387.4,2387.2,0.8617895]
[1728034282791,4.18854,2387.5,2387.2,1.43554901]
[1728034285008,4.18829,2387.7,2387.2,5.62445901]
[1728034285171,4.18829,2387.7,2387.4,0.7733]
[1728034285376,4.18829,2387.7,2387.5,0.496202]
[1728034285377,4.18824,2387.7,2387.5,0.496202]
[1728034285898,4.1883,2387.6,2387.5,0.496202]
[1728034286117,4.1883,2387.6,2387.4,0.7733]
[1728034287264,4.18851,2387.5,2387.2,0.8493895]
[1728034287801,4.18851,2387.5,2387.2,0.94092552]
[1728034288355,4.18824,2387.7,2387.2,0.94092552]
[1728034288556,4.18837,2387.6,2387.4,0.81]
[1728034288892,4.18837,2387.6,2387.4,1.32298855]
[1728034289070,4.18805,2387.8,2387.4,1.32298855]
[1728034289267,4.18824,2387.7,2387.4,1.32298855]
[1728034290882,4.18831,2387.6,2387.4,0.81]
[1728034292485,0.8127,2387.6,2387.2,0.8686895]
[1728034292710,4.18883,2387.3,2387.2,0.0393895]
[1728034292886,4.18883,2387.3,2387.2,0.13092552]
[1728034297048,4.18866,2387.4,2387.2,0.92492552]
[1728034297357,8.37748,2387.4,2387.2,0.92492552]
[1728034297857,8.37748,2387.4,2387.2,0.9019136]
[1728034298248,4.18883,2387.3,2387.2,0.9019136]
[1728034298570,5.810879,2387.3,2387.2,0.1079136]
[1728034298921,8.810879,2387.3,2387.2,0.1079136]
[1728034299122,8.810879,2387.3,2387.2,0.0393895]
[1728034299724,8.810879,2387.3,2387.2,0.10805446]
[1728034301066,4.97313,2387.3,2387.2,0.10805446]
[1728034303530,4.18883,2387.3,2387.2,0.10805446]
[1728034306955,4.18883,2387.3,2387.2,0.32078914]
[1728034307253,4.18883,2387.3,2387.2,0.10805446]
[1728034311881,4.18883,2387.3,2387.2,0.31923541]
[1728034313708,5.98539779,2387.3,2387.2,0.31923541]
[1728034314468,7.08204357,2387.3,2387.2,0.31923541]
[1728034315413,10.08204357,2387.3,2387.2,0.25057045]
[1728034315575,10.84684357,2387.3,2387.2,0.25057045]
[1728034323459,24.61269257,2387.3,2387.2,0.0393895]
[1728034324549,21.18116057,2387.3,2387.2,0.0393895]
[1728034327551,48.01668057,2387.3,2387.2,0.0393895]
[1728034329044,7.97713,2386.9,2386.8,0.20758861]
[1728034329221,4.19109,2386.1,2385.8,0.7925]
[1728034331766,4.19107,2386.1,2386.0,0.84207356]
[1728034333256,4.19107,2386.1,2386.0,0.7788]
[1728034335535,4.19107,2386.1,2386.0,0.9892383]
[1728034338946,4.19107,2386.1,2386.0,0.2104383]
[1728034339148,4.19107,2386.1,2385.8,0.8081]
[1728034339149,4.19129,2385.9,2385.8,0.8081]
[1728034342636,4.19146,2385.8,2385.7,0.11022165]
[1728034345443,4.19137,2385.9,2385.7,0.11022165]
[1728034345637,4.19102,2386.1,2385.8,1.79656779]
[1728034345873,4.19102,2386.1,2386.0,0.7843]
[1728034346339,4.19062,2386.3,2386.0,0.7843]
[1728034347058,8.38135,2386.3,2386.0,0.7843]
[1728034347440,4.19062,2386.3,2386.1,0.8309]
[1728034347640,4.19062,2386.3,2386.1,1.57375747]
[1728034348687,4.19014,2386.6,2386.3,0.8321]
[1728034349743,4.19026,2386.5,2386.3,0.8321]
[1728034349955,4.19041,2386.4,2386.3,0.8321]
[1728034350190,4.19026,2386.5,2386.3,0.8321]
[1728034350889,4.19003,2386.7,2386.3,0.8321]
[1728034351064,4.1901,2386.6,2386.3,1.40867675]
[1728034351942,8.38033,2386.6,2386.3,1.40867675]
[1728034352148,4.19025,2386.5,2386.3,1.40867675]
[1728034352348,4.19025,2386.5,2386.3,0.8321]
[1728034355002,8.38065,2386.5,2386.3,0.8321]
[1728034355205,4.19041,2386.4,2386.3,0.8321]
[1728034356109,4.19041,2386.4,2386.3,1.0457682]
[1728034357111,5.98697779,2386.4,2386.3,0.2136682]
[1728034357314,6.82504679,2386.4,2386.3,0.2136682]
[1728034357797,9.82504679,2386.4,2386.3,0.2136682]
[1728034364209,8.028479,2386.4,2386.3,0.2136682]
[1728034365181,4.19041,2386.4,2386.3,0.2136682]
[1728034369108,5.98697779,2386.4,2386.3,0.2136682]
[1728034370251,9.79877779,2386.4,2386.3,0.2136682]
[1728034371301,8.00221,2386.4,2386.3,0.2136682]
[1728034371503,9.79877779,2386.4,2386.3,0.2136682]
[1728034371715,9.40111578,2386.4,2386.3,0.2136682]
[1728034371991,11.19768357,2386.4,2386.3,0.2136682]
[1728034378142,9.40111578,2386.4,2386.3,0.2136682]
[1728034378305,11.19768357,2386.4,2386.3,0.2136682]
[1728034380607,3.0,2386.3,2385.7,0.87182165]
[1728034380806,7.19146,2385.8,2385.7,0.87182165]
[1728034381639,7.19146,2385.8,2385.7,1.07821359]
[1728034382449,4.19118,2386.0,2385.7,1.07821359]
[1728034382750,4.19098,2386.1,2385.8,0.7799]
[1728034383042,4.19098,2386.1,2385.8,1.90754414]
[1728034383227,3.0,2386.3,2385.8,1.90754414]
[1728034383434,4.191,2386.1,2385.8,1.12764414]
[1728034383623,4.191,2386.1,2385.9,0.8241]
[1728034388608,3.52540278,2386.1,2385.9,1.47008877]
[1728034390755,4.19083,2386.2,2385.9,1.47008877]
[1728034391139,4.19083,2386.2,2386.0,0.8224]
[1728034391343,7.19041,2386.4,2386.0,0.8224]
[1728034391544,4.19043,2386.4,2386.0,5.01345]
[1728034391742,4.19043,2386.4,2386.1,0.98507088]
[1728034392444,4.19043,2386.4,2386.2,0.8224]
[1728034393633,4.19058,2386.3,2386.2,0.8224]
[1728034400065,5.57606779,2386.5,2386.0,0.7962]
[1728034400272,4.19097,2386.1,2386.0,0.7962]
[1728034400567,4.19119,2386.0,2385.8,0.7962]
[1728034401442,4.19098,2386.1,2385.8,0.7962]
[1728034401761,4.19098,2386.1,2385.8,1.92547514]
[1728034403676,4.19112,2386.0,2385.8,1.92547514]
[1728034404066,4.19112,2386.0,2385.8,0.7962]
[1728034404647,4.19129,2385.9,2385.8,0.7962]
[1728034408453,4.19088,2386.2,2385.8,0.7962]
[1728034408786,4.19088,2386.2,2385.8,4.98766]
[1728034408992,4.19088,2386.2,2385.8,4.98752]
[1728034409162,4.19065,2386.3,2386.0,0.7731]
[1728034409363,15.26323,2386.5,2386.0,4.9642]
[1728034409693,3.0,2386.3,2386.0,4.9642]
[1728034409897,3.0,2386.3,2386.1,0.96857434]
[1728034410260,4.19048,2386.4,2386.1,0.96857434]
[1728034411290,4.19059,2386.3,2386.1,0.96857434]
[1728034413296,4.19076,2386.2,2386.1,0.96857434]
[1728034413524,8.38131,2386.3,2386.0,0.7731]
[1728034413812,4.19059,2386.3,2386.0,0.7731]
[1728034414016,8.38134,2386.3,2386.0,0.7731]
[1728034414317,4.19076,2386.2,2386.0,0.7731]
[1728034415484,8.38161,2386.2,2386.0,0.7731]
[1728034415685,4.19076,2386.2,2386.0,1.269553]
[1728034415882,8.38161,2386.2,2386.0,1.269553]
[1728034416082,4.19093,2386.1,2385.8,0.7736]
[1728034416304,4.19118,2386.0,2385.8,0.7736]
[1728034418985,4.19096,2386.1,2385.8,0.7736]
[1728034419187,4.19096,2386.1,2385.8,4.96494]
[1728034420420,4.19096,2386.1,2385.8,0.7736]
[1728034420730,4.19096,2386.1,2385.8,1.48144814]
[1728034423420,4.19113,2386.0,2385.8,1.48144814]
[1728034427305,4.19113,2386.0,2385.8,0.7736]
[1728034427627,4.19119,2386.0,2385.8,0.7736]
[1728034432011,4.19098,2386.1,2385.8,0.7736]
[1728034434441,4.19119,2386.0,2385.8,0.7736]
[1728034434750,4.19099,2386.1,2385.8,0.7736]
[1728034434953,8.38208,2386.1,2385.8,2.12091549]
[1728034436053,0.8036,2386.4,2385.8,0.7736]
[1728034436054,4.1912,2386.0,2385.8,0.7736]
[1728034436242,4.19129,2385.9,2385.7,1.197867]
[1728034436451,0.7968,2386.1,2385.7,1.197867]
[1728034436620,4.19146,2385.8,2385.7,0.31661359]
[1728034437149,5.029736,2385.8,2385.7,0.31661359]
[1728034437359,5.826536,2385.8,2385.7,0.31661359]
[1728034439350,4.98826,2385.8,2385.7,0.31661359]
[1728034443763,4.19146,2385.8,2385.7,0.31661359]
[1728034445630,8.00216,2385.8,2385.7,0.31661359]
[1728034445967,7.19146,2385.8,2385.7,0.31661359]
[1728034446466,4.19146,2385.8,2385.7,0.31661359]
[1728034452079,7.90583057,2385.8,2385.7,0.31661359]
[1728034452251,6.10926278,2385.8,2385.7,0.31661359]
[1728034453083,5.29046278,2385.8,2385.7,0.31661359]
[1728034453286,4.19146,2385.8,2385.7,0.31661359]
[1728034468400,7.99246,2385.8,2385.7,0.31661359]
[1728034473677,7.19146,2385.8,2385.7,0.31661359]
[1728034482099,4.19146,2385.8,2385.7,0.31661359]
[1728034487291,4.19146,2385.8,2385.7,1.14281359]
[1728034488532,4.19122,2386.0,2385.7,1.14281359]
[1728034488688,4.19122,2386.0,2385.8,0.8262]
[1728034488893,4.19122,2386.0,2385.8,1.4477787]
[1728034489787,4.19129,2385.9,2385.8,1.4477787]
[1728034489989,4.19129,2385.9,2385.8,0.8262]
[1728034491424,4.19129,2385.9,2385.7,0.31661359]
[1728034491425,4.19146,2385.8,2385.7,0.31661359]
[1728034498935,3.0,2386.1,2385.7,0.31661359]
[1728034498936,4.19124,2386.0,2385.8,0.8274]
[1728034499243,4.1912,2386.0,2385.8,0.8274]
[1728034500647,4.19101,2386.1,2385.8,1.4491007]
[1728034500940,4.19101,2386.1,2385.8,2.33035411]
[1728034501250,4.19101,2386.1,2385.8,1.4491007]
[1728034501551,4.19114,2386.0,2385.9,0.68384877]